[Event "*** Titled Tuesday Blitz"]
[Site "Chess.com"]
[Date "2020.11.10"]
[Round "6"]
[White "VMikhalevski"]
[Black "Chopper1905"]
[Result "0-1"]
[WhiteElo "2727"]
[BlackElo "2940"]
[TimeControl "180+1"]
[EndTime "11:08:41 PST"]
[Termination "Chopper1905 won by checkmate"]

1. Nf3 {[%clk 0:03:00.9]} 1... d5 {[%clk 0:03:00.1]} 2. g3 {[%clk 0:03:01.1]}
2... g6 {[%clk 0:02:58.7]} 3. Bg2 {[%clk 0:03:00.9]} 3... Bg7 {[%clk 0:02:59.3]}
4. d4 {[%clk 0:03:01.2]} 4... c6 {[%clk 0:02:59.1]} 5. O-O {[%clk 0:03:00.6]}
5... Nd7 {[%clk 0:02:59.5]} 6. Nbd2 {[%clk 0:02:59.3]} 6... Nb6 {[%clk
0:02:59.4]} 7. b3 {[%clk 0:02:58.9]} 7... Nf6 {[%clk 0:02:59.1]} 8. Bb2 {[%clk
0:02:58.9]} 8... Bf5 {[%clk 0:02:58.7]} 9. c4 {[%clk 0:02:58.1]} 9... O-O {[%clk
0:02:55.6]} 10. Ne5 {[%clk 0:02:56.7]} 10... Nfd7 {[%clk 0:02:53.1]} 11. Nef3
{[%clk 0:02:53.4]} 11... Nf6 {[%clk 0:02:50.5]} 12. a4 {[%clk 0:02:50.9]} 12...
a5 {[%clk 0:02:48.3]} 13. Ne5 {[%clk 0:02:49.2]} 13... Nfd7 {[%clk 0:02:47.6]}
14. Nef3 {[%clk 0:02:46.5]} 14... Nf6 {[%clk 0:02:47.3]} 15. Rc1 {[%clk
0:02:42.4]} 15... Ne4 {[%clk 0:02:45.7]} 16. c5 {[%clk 0:02:33.4]} 16... Nd7
{[%clk 0:02:43.3]} 17. Nh4 {[%clk 0:02:32.3]} 17... Nexc5 {[%clk 0:02:35.8]} 18.
Nxf5 {[%clk 0:02:29.1]} 18... gxf5 {[%clk 0:02:36.7]} 19. Qc2 {[%clk 0:02:13.8]}
19... Ne4 {[%clk 0:02:33.2]} 20. Nf3 {[%clk 0:02:13.4]} 20... e6 {[%clk
0:02:31.8]} 21. Ne1 {[%clk 0:02:11.7]} 21... Qb6 {[%clk 0:02:30.2]} 22. e3
{[%clk 0:02:11.5]} 22... Rfc8 {[%clk 0:02:19.3]} 23. f3 {[%clk 0:02:07.6]} 23...
Nef6 {[%clk 0:02:15.1]} 24. Nd3 {[%clk 0:02:06.8]} 24... Qd8 {[%clk 0:02:11.3]}
25. Ba3 {[%clk 0:02:02.9]} 25... b6 {[%clk 0:02:09.1]} 26. Qe2 {[%clk
0:01:45.4]} 26... Rab8 {[%clk 0:02:05.5]} 27. Ne5 {[%clk 0:01:43.4]} 27... Nxe5
{[%clk 0:02:03.8]} 28. dxe5 {[%clk 0:01:43.3]} 28... Nd7 {[%clk 0:02:03.7]} 29.
f4 {[%clk 0:01:43.3]} 29... Bf8 {[%clk 0:01:59.7]} 30. Bxf8 {[%clk 0:01:33.7]}
30... Qxf8 {[%clk 0:01:59.2]} 31. g4 {[%clk 0:01:33.7]} 31... fxg4 {[%clk
0:01:59.6]} 32. Qxg4+ {[%clk 0:01:31]} 32... Kh8 {[%clk 0:02:00]} 33. Kh1 {[%clk
0:01:21.9]} 33... Qh6 {[%clk 0:01:50.3]} 34. Qe2 {[%clk 0:01:07.2]} 34... Nc5
{[%clk 0:01:47.4]} 35. Rf3 {[%clk 0:01:06.4]} 35... Rg8 {[%clk 0:01:42.4]} 36.
Rh3 {[%clk 0:01:04.6]} 36... Qg6 {[%clk 0:01:41.8]} 37. Rf1 {[%clk 0:01:01.6]}
37... Rg7 {[%clk 0:01:38.6]} 38. Rg3 {[%clk 0:00:52.8]} 38... Qd3 {[%clk
0:01:38.4]} 39. Qh5 {[%clk 0:00:44.9]} 39... Rbg8 {[%clk 0:01:38]} 40. Rxg7
{[%clk 0:00:41.1]} 40... Rxg7 {[%clk 0:01:37.1]} 41. Qh4 {[%clk 0:00:40.3]}
41... Ne4 {[%clk 0:01:35.2]} 42. Re1 {[%clk 0:00:23]} 42... Qc2 {[%clk
0:01:28.8]} 43. h3 {[%clk 0:00:16]} 43... Qxg2# {[%clk 0:01:28.5]} 0-1

[Event "*** Titled Tuesday Blitz"]
[Site "Chess.com"]
[Date "2020.11.10"]
[Round "6"]
[White "Sergienko_Sergey"]
[Black "SanchezKelvin"]
[Result "0-1"]
[WhiteElo "2290"]
[BlackElo "2444"]
[TimeControl "180+1"]
[EndTime "11:08:44 PST"]
[Termination "SanchezKelvin won by checkmate"]

1. e4 {[%clk 0:02:57.8]} 1... c5 {[%clk 0:02:59.9]} 2. Nf3 {[%clk 0:02:57.3]}
2... d6 {[%clk 0:02:57.7]} 3. d4 {[%clk 0:02:56.3]} 3... cxd4 {[%clk 0:02:58.6]}
4. Nxd4 {[%clk 0:02:56.3]} 4... Nf6 {[%clk 0:02:57.2]} 5. Nc3 {[%clk 0:02:56.2]}
5... g6 {[%clk 0:02:56.1]} 6. Be2 {[%clk 0:02:54.9]} 6... Bg7 {[%clk 0:02:55.3]}
7. O-O {[%clk 0:02:53.8]} 7... O-O {[%clk 0:02:56.2]} 8. Bg5 {[%clk 0:02:53.1]}
8... Nc6 {[%clk 0:02:56.1]} 9. Nb3 {[%clk 0:02:52.4]} 9... a5 {[%clk 0:02:55]}
10. a4 {[%clk 0:02:50.2]} 10... h6 {[%clk 0:02:54.3]} 11. Bh4 {[%clk 0:02:48.1]}
11... Be6 {[%clk 0:02:54.4]} 12. Kh1 {[%clk 0:02:43.8]} 12... Rc8 {[%clk
0:02:47.1]} 13. f4 {[%clk 0:02:42.4]} 13... Nb4 {[%clk 0:02:38.6]} 14. f5 {[%clk
0:02:28.9]} 14... Bxb3 {[%clk 0:02:36]} 15. cxb3 {[%clk 0:02:27.3]} 15... g5
{[%clk 0:02:36.1]} 16. Bf2 {[%clk 0:02:17.7]} 16... Nc6 {[%clk 0:02:25.6]} 17.
h3 {[%clk 0:01:54.6]} 17... Ne5 {[%clk 0:02:23.7]} 18. Bd4 {[%clk 0:01:47.1]}
18... Nfd7 {[%clk 0:02:07.2]} 19. Bb5 {[%clk 0:01:40.1]} 19... Nf6 {[%clk
0:01:42.4]} 20. Qe2 {[%clk 0:01:36.8]} 20... e6 {[%clk 0:01:33.2]} 21. Rad1
{[%clk 0:01:34.4]} 21... Qe7 {[%clk 0:01:31.7]} 22. Bb6 {[%clk 0:01:20.7]} 22...
g4 {[%clk 0:01:20.6]} 23. Bxa5 {[%clk 0:01:12.6]} 23... Nh5 {[%clk 0:01:18.9]}
24. Qf2 {[%clk 0:01:00.2]} 24... Qg5 {[%clk 0:00:57.9]} 25. Rg1 {[%clk
0:00:48.3]} 25... g3 {[%clk 0:00:51]} 26. Qe2 {[%clk 0:00:40.4]} 26... Nf4
{[%clk 0:00:50.6]} 27. Qe3 {[%clk 0:00:36]} 27... Qh4 {[%clk 0:00:49.5]} 28. Ne2
{[%clk 0:00:29]} 28... Nxh3 {[%clk 0:00:44.9]} 29. Qxg3 {[%clk 0:00:27.3]} 29...
Nf2# {[%clk 0:00:43.4]} 0-1

[Event "*** Titled Tuesday Blitz"]
[Site "Chess.com"]
[Date "2020.11.10"]
[Round "6"]
[White "yuki_chess123"]
[Black "albi1999"]
[Result "0-1"]
[WhiteElo "2223"]
[BlackElo "2548"]
[TimeControl "180+1"]
[EndTime "11:08:47 PST"]
[Termination "albi1999 won on time"]

1. Nf3 {[%clk 0:02:45.4]} 1... d5 {[%clk 0:02:57]} 2. g3 {[%clk 0:02:45.3]} 2...
Bg4 {[%clk 0:02:54.9]} 3. Bg2 {[%clk 0:02:45.6]} 3... Nd7 {[%clk 0:02:54.2]} 4.
d3 {[%clk 0:02:41.2]} 4... e5 {[%clk 0:02:51.6]} 5. O-O {[%clk 0:02:35.7]} 5...
Ngf6 {[%clk 0:02:48.1]} 6. c4 {[%clk 0:02:35.6]} 6... dxc4 {[%clk 0:02:39.1]} 7.
Qa4 {[%clk 0:02:31.7]} 7... c6 {[%clk 0:02:28.3]} 8. Qxc4 {[%clk 0:02:28.9]}
8... Bd6 {[%clk 0:02:25.1]} 9. Nbd2 {[%clk 0:02:20.5]} 9... O-O {[%clk
0:02:24.7]} 10. b3 {[%clk 0:02:05.7]} 10... Re8 {[%clk 0:02:24.3]} 11. Bb2
{[%clk 0:02:05]} 11... Qa5 {[%clk 0:02:15.5]} 12. Qc2 {[%clk 0:01:56.8]} 12...
Qd8 {[%clk 0:02:11.6]} 13. Rad1 {[%clk 0:01:40.1]} 13... Nd5 {[%clk 0:01:59.3]}
14. a3 {[%clk 0:01:37.5]} 14... a5 {[%clk 0:01:59]} 15. e4 {[%clk 0:01:36.1]}
15... N5f6 {[%clk 0:01:55.8]} 16. Nc4 {[%clk 0:01:35.9]} 16... Bc7 {[%clk
0:01:56]} 17. d4 {[%clk 0:01:35.7]} 17... exd4 {[%clk 0:01:55.6]} 18. Bxd4
{[%clk 0:01:35.1]} 18... Nxe4 {[%clk 0:01:39.6]} 19. Rfe1 {[%clk 0:01:06.1]}
19... Nef6 {[%clk 0:01:37.3]} 20. Rxe8+ {[%clk 0:00:51.6]} 20... Qxe8 {[%clk
0:01:36.8]} 21. Re1 {[%clk 0:00:46.6]} 21... Qf8 {[%clk 0:01:36.1]} 22. Nfe5
{[%clk 0:00:27.7]} 22... Nxe5 {[%clk 0:01:33.9]} 23. Nxe5 {[%clk 0:00:27.9]}
23... Be6 {[%clk 0:01:34.5]} 24. Nxc6 {[%clk 0:00:17.3]} 24... bxc6 {[%clk
0:01:31.2]} 25. Bxf6 {[%clk 0:00:16.8]} 25... gxf6 {[%clk 0:01:28]} 26. Qxc6
{[%clk 0:00:16.8]} 26... Rc8 {[%clk 0:01:24.7]} 27. Rxe6 {[%clk 0:00:11.9]}
27... fxe6 {[%clk 0:01:23.1]} 28. Qxe6+ {[%clk 0:00:12.1]} 28... Kh8 {[%clk
0:01:23.7]} 29. Be4 {[%clk 0:00:08.4]} 29... Re8 {[%clk 0:01:16]} 30. Qf5 {[%clk
0:00:07.6]} 30... Qe7 {[%clk 0:01:14.3]} 31. Bd3 {[%clk 0:00:03.6]} 31... Bb6
{[%clk 0:01:11.8]} 32. Kg2 {[%clk 0:00:02.8]} 32... Rd8 {[%clk 0:01:10.8]} 0-1

[Event "*** Titled Tuesday Blitz"]
[Site "Chess.com"]
[Date "2020.11.10"]
[Round "6"]
[White "MatyChess1"]
[Black "zmeeed67"]
[Result "1-0"]
[WhiteElo "2564"]
[BlackElo "2367"]
[TimeControl "180+1"]
[EndTime "11:08:47 PST"]
[Termination "MatyChess1 won by resignation"]

1. e4 {[%clk 0:03:00.9]} 1... Nc6 {[%clk 0:03:00]} 2. Nf3 {[%clk 0:03:00.9]}
2... d6 {[%clk 0:02:59.6]} 3. d4 {[%clk 0:03:00.6]} 3... Nf6 {[%clk 0:02:59.5]}
4. Nc3 {[%clk 0:02:44.6]} 4... Bg4 {[%clk 0:02:58.4]} 5. d5 {[%clk 0:02:40.8]}
5... Bxf3 {[%clk 0:02:44]} 6. gxf3 {[%clk 0:02:40.5]} 6... Nb8 {[%clk
0:02:42.5]} 7. f4 {[%clk 0:02:36.9]} 7... g6 {[%clk 0:02:42]} 8. e5 {[%clk
0:02:36.2]} 8... Nh5 {[%clk 0:02:30.4]} 9. Be2 {[%clk 0:02:33.8]} 9... Ng7
{[%clk 0:02:27.3]} 10. Bg4 {[%clk 0:01:59.5]} 10... e6 {[%clk 0:01:57.7]} 11.
Qd4 {[%clk 0:01:49.2]} 11... c5 {[%clk 0:01:28.9]} 12. Qa4+ {[%clk 0:01:31.6]}
12... Nd7 {[%clk 0:01:13.7]} 13. Be3 {[%clk 0:01:21.1]} 13... a6 {[%clk
0:01:07.2]} 14. dxe6 {[%clk 0:01:13.4]} 14... fxe6 {[%clk 0:01:05.4]} 15. exd6
{[%clk 0:01:10.3]} 15... Bxd6 {[%clk 0:00:49.6]} 16. O-O-O {[%clk 0:01:09.9]}
16... Qe7 {[%clk 0:00:46.5]} 17. Ne4 {[%clk 0:01:05.5]} 17... b5 {[%clk
0:00:29.8]} 18. Qa5 {[%clk 0:00:54.6]} 18... Bb8 {[%clk 0:00:23]} 19. Rxd7
{[%clk 0:00:50]} 19... Kxd7 {[%clk 0:00:20.6]} 20. Qb6 {[%clk 0:00:39.6]} 20...
Ke8 {[%clk 0:00:17.1]} 21. Qc6+ {[%clk 0:00:37.4]} 21... Qd7 {[%clk 0:00:14]}
22. Nf6+ {[%clk 0:00:36.6]} 1-0

[Event "*** Titled Tuesday Blitz"]
[Site "Chess.com"]
[Date "2020.11.10"]
[Round "6"]
[White "szachuspl"]
[Black "tteshan"]
[Result "1-0"]
[WhiteElo "2531"]
[BlackElo "2360"]
[TimeControl "180+1"]
[EndTime "11:08:50 PST"]
[Termination "szachuspl won by resignation"]

1. d4 {[%clk 0:03:00.9]} 1... d5 {[%clk 0:02:59.7]} 2. c4 {[%clk 0:03:00.7]}
2... dxc4 {[%clk 0:03:00.6]} 3. e4 {[%clk 0:03:00.5]} 3... e5 {[%clk 0:02:59.8]}
4. Nf3 {[%clk 0:03:00]} 4... Bb4+ {[%clk 0:02:59.1]} 5. Bd2 {[%clk 0:02:53]}
5... Bxd2+ {[%clk 0:02:59.2]} 6. Nbxd2 {[%clk 0:02:53.1]} 6... exd4 {[%clk
0:02:59.8]} 7. Bxc4 {[%clk 0:02:53.4]} 7... Nf6 {[%clk 0:02:53.1]} 8. e5 {[%clk
0:02:52.6]} 8... Nd5 {[%clk 0:02:50]} 9. Qb3 {[%clk 0:02:52.3]} 9... Be6 {[%clk
0:02:42]} 10. Qxb7 {[%clk 0:02:48.9]} 10... Nb6 {[%clk 0:02:15.6]} 11. Bxe6
{[%clk 0:02:48.8]} 11... fxe6 {[%clk 0:02:16.5]} 12. O-O {[%clk 0:02:48.3]}
12... O-O {[%clk 0:02:15.9]} 13. Ne4 {[%clk 0:02:46.8]} 13... N8d7 {[%clk
0:02:06.6]} 14. Rac1 {[%clk 0:02:41.3]} 14... Nd5 {[%clk 0:01:56.9]} 15. Nxd4
{[%clk 0:02:36.1]} 15... Nxe5 {[%clk 0:01:54.6]} 16. Nxe6 {[%clk 0:02:35]} 16...
Qd7 {[%clk 0:01:37]} 17. Nxf8 {[%clk 0:02:32.9]} 17... Rxf8 {[%clk 0:01:37.2]}
18. Rfd1 {[%clk 0:02:32.6]} 18... Rd8 {[%clk 0:01:24.2]} 19. Rc5 {[%clk
0:02:29.1]} 19... Qg4 {[%clk 0:01:20.3]} 20. Qb3 {[%clk 0:02:20.8]} 20... c6
{[%clk 0:00:58]} 21. f3 {[%clk 0:02:20.4]} 21... Qf4 {[%clk 0:00:45.4]} 22. Qc2
{[%clk 0:01:34.2]} 22... Rb8 {[%clk 0:00:16.6]} 23. Qd2 {[%clk 0:01:33.1]} 23...
Qf8 {[%clk 0:00:10]} 24. Rxc6 {[%clk 0:01:24.9]} 24... Nxc6 {[%clk 0:00:07.3]}
25. Qxd5+ {[%clk 0:01:24.7]} 25... Kh8 {[%clk 0:00:04.2]} 26. Qxc6 {[%clk
0:01:24.8]} 26... Rxb2 {[%clk 0:00:04.6]} 27. Qd6 {[%clk 0:01:22.3]} 27... Qxd6
{[%clk 0:00:04]} 28. Rxd6 {[%clk 0:01:21]} 28... Kg8 {[%clk 0:00:04.5]} 29. Ra6
{[%clk 0:01:21]} 29... Rb1+ {[%clk 0:00:03.7]} 30. Kf2 {[%clk 0:01:21]} 30...
Rb2+ {[%clk 0:00:04.4]} 31. Kg3 {[%clk 0:01:21.2]} 31... Rb7 {[%clk 0:00:05.1]}
32. Nc5 {[%clk 0:01:21.6]} 32... Rc7 {[%clk 0:00:05.4]} 33. Ne6 {[%clk
0:01:21.9]} 33... Re7 {[%clk 0:00:05.4]} 34. Nd4 {[%clk 0:01:22]} 34... h6
{[%clk 0:00:04.7]} 35. Nb5 {[%clk 0:01:21.2]} 35... Re5 {[%clk 0:00:03.5]} 36.
Nxa7 {[%clk 0:01:21.4]} 36... Re2 {[%clk 0:00:03.4]} 37. Nb5 {[%clk 0:01:20.2]}
37... Rb2 {[%clk 0:00:03.3]} 38. Nc3 {[%clk 0:01:20]} 38... Rb1 {[%clk
0:00:03.3]} 39. Ne4 {[%clk 0:01:20.5]} 1-0

[Event "*** Titled Tuesday Blitz"]
[Site "Chess.com"]
[Date "2020.11.10"]
[Round "6"]
[White "KuzubovYuriy"]
[Black "tsaruk_maks"]
[Result "1-0"]
[WhiteElo "2834"]
[BlackElo "2620"]
[TimeControl "180+1"]
[EndTime "11:08:54 PST"]
[Termination "KuzubovYuriy won by resignation"]

1. d4 {[%clk 0:03:00.9]} 1... Nf6 {[%clk 0:02:59.9]} 2. Nf3 {[%clk 0:03:01.1]}
2... e6 {[%clk 0:02:59.5]} 3. c4 {[%clk 0:03:00.9]} 3... d5 {[%clk 0:03:00]} 4.
g3 {[%clk 0:02:57.7]} 4... dxc4 {[%clk 0:02:58.3]} 5. Bg2 {[%clk 0:02:57.7]}
5... c5 {[%clk 0:02:58.9]} 6. O-O {[%clk 0:02:52.3]} 6... Nc6 {[%clk 0:02:59.4]}
7. dxc5 {[%clk 0:02:52.3]} 7... Qxd1 {[%clk 0:02:58.8]} 8. Rxd1 {[%clk
0:02:53.2]} 8... Bxc5 {[%clk 0:02:59.3]} 9. Nbd2 {[%clk 0:02:52.2]} 9... c3
{[%clk 0:02:59.9]} 10. bxc3 {[%clk 0:02:53.1]} 10... O-O {[%clk 0:03:00.4]} 11.
Ne1 {[%clk 0:02:53.7]} 11... Nd5 {[%clk 0:02:56.2]} 12. Bb2 {[%clk 0:02:48.9]}
12... Rd8 {[%clk 0:02:06.5]} 13. Nd3 {[%clk 0:02:39.3]} 13... Be7 {[%clk
0:02:02.3]} 14. Rab1 {[%clk 0:02:35]} 14... Bd7 {[%clk 0:01:57.1]} 15. Nb3
{[%clk 0:02:27.4]} 15... Be8 {[%clk 0:01:52.6]} 16. c4 {[%clk 0:02:25.3]} 16...
Nb6 {[%clk 0:01:48.6]} 17. c5 {[%clk 0:02:19.9]} 17... Na4 {[%clk 0:01:43.5]}
18. Ba1 {[%clk 0:02:16.1]} 18... f6 {[%clk 0:01:38.9]} 19. Rdc1 {[%clk
0:02:11.9]} 19... Rac8 {[%clk 0:00:24.8]} 20. Bh3 {[%clk 0:01:56.9]} 20... Kf7
{[%clk 0:00:22.9]} 21. Nf4 {[%clk 0:01:55.9]} 21... Bd7 {[%clk 0:00:22.9]} 22.
Rd1 {[%clk 0:01:49.2]} 22... f5 {[%clk 0:00:10.5]} 23. e4 {[%clk 0:01:41.7]}
23... Nxc5 {[%clk 0:00:06.3]} 24. Nxc5 {[%clk 0:01:34.9]} 24... Bxc5 {[%clk
0:00:07.2]} 25. Rxb7 {[%clk 0:01:33.4]} 25... Ke8 {[%clk 0:00:03]} 26. exf5
{[%clk 0:01:31.9]} 26... Na5 {[%clk 0:00:03]} 27. fxe6 {[%clk 0:01:21.9]} 27...
Ba4 {[%clk 0:00:02]} 28. Rxd8+ {[%clk 0:01:18.4]} 28... Rxd8 {[%clk 0:00:02.9]}
29. Rb1 {[%clk 0:01:10.1]} 29... g5 {[%clk 0:00:03.4]} 30. Nh5 {[%clk
0:01:05.8]} 30... Rd2 {[%clk 0:00:03.8]} 31. Nf6+ {[%clk 0:01:05.3]} 31... Ke7
{[%clk 0:00:04.3]} 32. Ne4 {[%clk 0:01:05.9]} 32... Rd1+ {[%clk 0:00:01.8]} 33.
Rxd1 {[%clk 0:01:05.3]} 1-0

[Event "*** Titled Tuesday Blitz"]
[Site "Chess.com"]
[Date "2020.11.10"]
[Round "6"]
[White "ShapkinAnatoliy"]
[Black "LiamVrolijk"]
[Result "1-0"]
[WhiteElo "2629"]
[BlackElo "2802"]
[TimeControl "180+1"]
[EndTime "11:08:57 PST"]
[Termination "ShapkinAnatoliy won by resignation"]

1. d4 {[%clk 0:02:54.6]} 1... d5 {[%clk 0:02:59]} 2. c4 {[%clk 0:02:26.8]} 2...
e6 {[%clk 0:02:59.2]} 3. Nf3 {[%clk 0:02:26.6]} 3... Nf6 {[%clk 0:02:58.5]} 4.
g3 {[%clk 0:02:27.1]} 4... Be7 {[%clk 0:02:54.4]} 5. Bg2 {[%clk 0:02:27.4]} 5...
O-O {[%clk 0:02:55.2]} 6. O-O {[%clk 0:02:27.5]} 6... dxc4 {[%clk 0:02:55.9]} 7.
Qc2 {[%clk 0:02:27.3]} 7... a6 {[%clk 0:02:56.3]} 8. a4 {[%clk 0:02:26.7]} 8...
Bd7 {[%clk 0:02:56.6]} 9. Nc3 {[%clk 0:02:25.9]} 9... Bc6 {[%clk 0:02:53]} 10.
Rd1 {[%clk 0:02:25.8]} 10... Bxf3 {[%clk 0:02:46.8]} 11. Bxf3 {[%clk 0:02:26.7]}
11... Nc6 {[%clk 0:02:47.3]} 12. Bxc6 {[%clk 0:02:26.8]} 12... bxc6 {[%clk
0:02:48.2]} 13. a5 {[%clk 0:02:27.4]} 13... Rb8 {[%clk 0:02:46.7]} 14. Ra4
{[%clk 0:02:26.9]} 14... Rb4 {[%clk 0:02:42.5]} 15. Na2 {[%clk 0:02:23.4]} 15...
Rxa4 {[%clk 0:02:33.9]} 16. Qxa4 {[%clk 0:02:24.3]} 16... Qa8 {[%clk 0:02:08.8]}
17. Qxc4 {[%clk 0:02:10.6]} 17... Qb7 {[%clk 0:02:09.3]} 18. Nc3 {[%clk
0:02:03.4]} 18... Bb4 {[%clk 0:01:53.7]} 19. Bg5 {[%clk 0:01:57.5]} 19... Nd5
{[%clk 0:01:54]} 20. e4 {[%clk 0:01:32]} 20... Nxc3 {[%clk 0:01:49.6]} 21. bxc3
{[%clk 0:01:32.2]} 21... Bxa5 {[%clk 0:01:48.8]} 22. Ra1 {[%clk 0:01:29.7]}
22... Bb6 {[%clk 0:01:29]} 23. Rxa6 {[%clk 0:01:25.3]} 23... c5 {[%clk 0:01:24]}
24. d5 {[%clk 0:01:24.3]} 24... exd5 {[%clk 0:01:21.7]} 25. exd5 {[%clk
0:01:25.2]} 25... Re8 {[%clk 0:01:20.1]} 26. Ra1 {[%clk 0:01:19.3]} 26... Re5
{[%clk 0:01:13]} 27. Bf4 {[%clk 0:00:45.4]} 27... Rxd5 {[%clk 0:01:11.9]} 28.
Qe4 {[%clk 0:00:38.6]} 28... Qc6 {[%clk 0:00:54.7]} 29. c4 {[%clk 0:00:31.3]}
1-0

[Event "*** Titled Tuesday Blitz"]
[Site "Chess.com"]
[Date "2020.11.10"]
[Round "6"]
[White "juli2512"]
[Black "talman67"]
[Result "0-1"]
[WhiteElo "2102"]
[BlackElo "2545"]
[TimeControl "180+1"]
[EndTime "11:09:05 PST"]
[Termination "talman67 won on time"]

1. e4 {[%clk 0:03:00.9]} 1... e5 {[%clk 0:02:59.6]} 2. Nf3 {[%clk 0:02:56.3]}
2... Nc6 {[%clk 0:03:00]} 3. Nc3 {[%clk 0:02:56.7]} 3... Nf6 {[%clk 0:02:59.7]}
4. g3 {[%clk 0:02:55.9]} 4... d5 {[%clk 0:02:58.4]} 5. exd5 {[%clk 0:02:54.9]}
5... Nxd5 {[%clk 0:02:59.3]} 6. d3 {[%clk 0:02:55.3]} 6... Bb4 {[%clk
0:02:58.5]} 7. Bd2 {[%clk 0:02:54.7]} 7... Bxc3 {[%clk 0:02:57.4]} 8. bxc3
{[%clk 0:02:54.4]} 8... f6 {[%clk 0:02:57.2]} 9. Bg2 {[%clk 0:02:54.3]} 9... Be6
{[%clk 0:02:57.7]} 10. O-O {[%clk 0:02:53.9]} 10... Qd7 {[%clk 0:02:57.6]} 11.
Re1 {[%clk 0:02:51.5]} 11... O-O {[%clk 0:02:57.2]} 12. Rb1 {[%clk 0:02:38.4]}
12... b6 {[%clk 0:02:56.4]} 13. c4 {[%clk 0:02:31.6]} 13... Nde7 {[%clk
0:02:56.1]} 14. Be3 {[%clk 0:02:32]} 14... Bh3 {[%clk 0:02:55]} 15. Bh1 {[%clk
0:02:31.3]} 15... Nf5 {[%clk 0:02:54.2]} 16. Nd2 {[%clk 0:02:17.4]} 16... Nxe3
{[%clk 0:02:49.8]} 17. fxe3 {[%clk 0:02:16.7]} 17... f5 {[%clk 0:02:50.7]} 18.
Bd5+ {[%clk 0:02:14.3]} 18... Kh8 {[%clk 0:02:50.8]} 19. Nf3 {[%clk 0:02:10.1]}
19... Bg4 {[%clk 0:02:49.9]} 20. Qd2 {[%clk 0:02:03.1]} 20... Qd6 {[%clk
0:02:50.8]} 21. Bxc6 {[%clk 0:01:55.6]} 21... Qxc6 {[%clk 0:02:50.1]} 22. Nxe5
{[%clk 0:01:55.6]} 22... Qa4 {[%clk 0:02:45.2]} 23. Nxg4 {[%clk 0:01:48.2]}
23... fxg4 {[%clk 0:02:46.1]} 24. Rf1 {[%clk 0:01:45.1]} 24... Rxf1+ {[%clk
0:02:46]} 25. Rxf1 {[%clk 0:01:41.3]} 25... Qxa2 {[%clk 0:02:46.9]} 26. Qb4
{[%clk 0:01:31.3]} 26... c5 {[%clk 0:02:33.4]} 27. Qc3 {[%clk 0:01:30.3]} 27...
Qa4 {[%clk 0:02:25.1]} 28. Rf7 {[%clk 0:01:20.6]} 28... Rg8 {[%clk 0:02:25.6]}
29. Rf4 {[%clk 0:00:59.3]} 29... Qe8 {[%clk 0:02:20.4]} 30. Kf2 {[%clk
0:00:45.3]} 30... a5 {[%clk 0:02:20.2]} 31. Rxg4 {[%clk 0:00:38]} 31... Qh5
{[%clk 0:02:17.4]} 32. Rf4 {[%clk 0:00:27.6]} 32... Qxh2+ {[%clk 0:02:16.1]} 33.
Kf3 {[%clk 0:00:27.6]} 33... Qh1+ {[%clk 0:02:11.5]} 34. Kf2 {[%clk 0:00:27.1]}
34... a4 {[%clk 0:02:08.9]} 35. Qa3 {[%clk 0:00:18.6]} 35... Qh2+ {[%clk
0:02:00.8]} 36. Kf3 {[%clk 0:00:18]} 36... Qxc2 {[%clk 0:02:01.7]} 37. Re4
{[%clk 0:00:09.2]} 37... Rf8+ {[%clk 0:01:46.5]} 38. Rf4 {[%clk 0:00:08.8]}
38... Rd8 {[%clk 0:01:45.4]} 39. Qa1 {[%clk 0:00:05.4]} 39... Kg8 {[%clk
0:01:31.6]} 40. Qe5 {[%clk 0:00:02.5]} 40... Qxd3 {[%clk 0:01:22.1]} 41. Qe6+
{[%clk 0:00:01.7]} 41... Kh8 {[%clk 0:01:21.7]} 0-1

[Event "*** Titled Tuesday Blitz"]
[Site "Chess.com"]
[Date "2020.11.10"]
[Round "6"]
[White "lolo9292"]
[Black "Chernov_Mikhail"]
[Result "1-0"]
[WhiteElo "2535"]
[BlackElo "2339"]
[TimeControl "180+1"]
[EndTime "11:09:05 PST"]
[Termination "lolo9292 won by resignation"]

1. e4 {[%clk 0:02:57.9]} 1... c5 {[%clk 0:02:59.9]} 2. Nc3 {[%clk 0:02:58.8]}
2... Nc6 {[%clk 0:02:59.8]} 3. Bb5 {[%clk 0:02:59]} 3... g6 {[%clk 0:02:58.9]}
4. Bxc6 {[%clk 0:02:59.1]} 4... bxc6 {[%clk 0:02:59.8]} 5. d3 {[%clk 0:03:00]}
5... Bg7 {[%clk 0:03:00.3]} 6. f4 {[%clk 0:02:59.3]} 6... d6 {[%clk 0:03:00.1]}
7. Nf3 {[%clk 0:03:00.2]} 7... Nf6 {[%clk 0:02:59.5]} 8. O-O {[%clk 0:02:57.6]}
8... O-O {[%clk 0:02:59.6]} 9. Qe1 {[%clk 0:02:53.8]} 9... Rb8 {[%clk
0:02:52.4]} 10. Kh1 {[%clk 0:02:54.1]} 10... Ne8 {[%clk 0:02:51.2]} 11. Qh4
{[%clk 0:02:52.5]} 11... f5 {[%clk 0:02:39.6]} 12. e5 {[%clk 0:02:50]} 12... Nc7
{[%clk 0:02:34.6]} 13. Re1 {[%clk 0:02:47.4]} 13... Nd5 {[%clk 0:02:06.7]} 14.
Nxd5 {[%clk 0:02:45.8]} 14... cxd5 {[%clk 0:02:07.6]} 15. b3 {[%clk 0:02:42.2]}
15... e6 {[%clk 0:01:57.2]} 16. Qg3 {[%clk 0:02:39.5]} 16... d4 {[%clk 0:01:41]}
17. Bd2 {[%clk 0:02:37.3]} 17... d5 {[%clk 0:01:40.3]} 18. Rac1 {[%clk
0:02:34.6]} 18... Bd7 {[%clk 0:01:36.7]} 19. c3 {[%clk 0:02:34.7]} 19... dxc3
{[%clk 0:01:35.2]} 20. Rxc3 {[%clk 0:02:32]} 20... Qb6 {[%clk 0:01:34.1]} 21.
Rec1 {[%clk 0:02:25.3]} 21... Rfc8 {[%clk 0:01:31.8]} 22. Qf2 {[%clk 0:02:24.1]}
22... d4 {[%clk 0:01:17.1]} 23. R3c2 {[%clk 0:02:19]} 23... Bf8 {[%clk
0:01:17.6]} 24. Qh4 {[%clk 0:02:14.9]} 24... Qd8 {[%clk 0:01:13.8]} 25. Qh3
{[%clk 0:02:12.2]} 25... Bc6 {[%clk 0:01:09.3]} 26. Ng5 {[%clk 0:02:03.2]} 26...
Qd7 {[%clk 0:01:08.4]} 27. Be1 {[%clk 0:01:59.5]} 27... Bd5 {[%clk 0:00:56.7]}
28. Bh4 {[%clk 0:01:56.6]} 28... a5 {[%clk 0:00:54.6]} 29. Nf3 {[%clk
0:01:55.5]} 29... a4 {[%clk 0:00:52.3]} 30. bxa4 {[%clk 0:01:56.4]} 30... Qxa4
{[%clk 0:00:50.1]} 31. Qg3 {[%clk 0:01:44.8]} 31... c4 {[%clk 0:00:34.4]} 32.
Nxd4 {[%clk 0:01:41.4]} 32... cxd3 {[%clk 0:00:28.4]} 33. Rxc8 {[%clk
0:01:41.4]} 33... Rxc8 {[%clk 0:00:22.9]} 34. Rxc8 {[%clk 0:01:42.3]} 34... Qxd4
{[%clk 0:00:22]} 35. Rc1 {[%clk 0:01:28.5]} 35... Qe4 {[%clk 0:00:14.1]} 36. Qf2
{[%clk 0:01:25.3]} 36... Bb4 {[%clk 0:00:11.7]} 37. Bf6 {[%clk 0:01:16.9]} 37...
d2 {[%clk 0:00:10.2]} 38. Rc8+ {[%clk 0:01:16.7]} 38... Bf8 {[%clk 0:00:09.5]}
39. Qxd2 {[%clk 0:01:13.6]} 39... Bc6 {[%clk 0:00:07.7]} 40. Rxf8+ {[%clk
0:01:11.4]} 40... Kxf8 {[%clk 0:00:07.1]} 41. Qd8+ {[%clk 0:01:11.8]} 1-0